[Event "14e Open International de Quenza"]
[Site "Quenza, France"]
[Date "????.??.??"]
[Round "4.11"]
[White "Skripchenko, Almira"]
[Black "Cardenas Yebra, Antoni"]
[Result "1-0"]
[TimeControl "5min+3s"]
[WhiteElo "2359"]
[BlackElo "1866"]

1. e4 {[%clk 00:05:03]} {[%emt 00:00:02]} c5 {[%clk 00:05:03]} {[%emt
00:00:02]} 2. Nf3 {[%clk 00:05:03]} {[%emt 00:00:02]} Nc6 {[%clk 00:05:03]}
{[%emt 00:00:02]} 3. Bb5 {[%clk 00:05:03]} {[%emt 00:00:01]} d6 {[%clk
00:05:03]} {[%emt 00:00:02]} 4. O-O {[%clk 00:05:03]} {[%emt 00:00:02]} g6
{[%clk 00:05:03]} {[%emt 00:00:03]} 5. c3 {[%clk 00:05:00]} {[%emt 00:00:06]}
Bg7 {[%clk 00:04:58]} {[%emt 00:00:09]} 6. d4 {[%clk 00:04:52]} {[%emt
00:00:10]} cxd4 {[%clk 00:04:58]} {[%emt 00:00:04]} 7. cxd4 {[%emt 00:00:01]}
Bd7 8. Nc3 {[%clk 00:04:48]} {[%emt 00:00:06]} Nf6 {[%clk 00:04:53]} {[%emt
00:00:08]} 9. h3 {[%clk 00:04:47]} {[%emt 00:00:05]} a6 {[%clk 00:04:48]}
{[%emt 00:00:08]} 10. Bd3 {[%clk 00:04:32]} {[%emt 00:00:17]} O-O {[%clk
00:04:38]} {[%emt 00:00:13]} 11. e5 {[%clk 00:04:32]} {[%emt 00:00:02]} dxe5
{[%clk 00:04:28]} {[%emt 00:00:13]} 12. dxe5 {[%emt 00:00:01]} Ne8 13. Qe2
{[%clk 00:04:27]} {[%emt 00:00:07]} Nc7 {[%clk 00:04:10]} {[%emt 00:00:22]} 14.
Rd1 {[%clk 00:03:34]} {[%emt 00:00:56]} Qc8 {[%clk 00:04:07]} {[%emt 00:00:06]}
15. Bg5 {[%clk 00:02:59]} {[%emt 00:00:37]} Ne6 {[%clk 00:03:50]} {[%emt
00:00:20]} 16. Nd5 {[%clk 00:02:51]} {[%emt 00:00:10]} Qe8 {[%clk 00:03:14]}
{[%emt 00:00:39]} 17. Bd2 {[%clk 00:02:08]} {[%emt 00:00:46]} Ncd4 {[%clk
00:02:39]} {[%emt 00:00:38]} 18. Nxd4 {[%clk 00:02:04]} {[%emt 00:00:07]} Nxd4
{[%clk 00:02:39]} {[%emt 00:00:01]} 19. Qe3 {[%clk 00:02:03]} {[%emt 00:00:04]}
Ne6 {[%clk 00:02:36]} {[%emt 00:00:07]} 20. Bb4 {[%clk 00:01:50]} {[%emt
00:00:15]} Bc6 {[%clk 00:02:16]} {[%emt 00:00:23]} 21. Nxe7+ {[%clk 00:01:40]}
{[%emt 00:00:13]} Kh8 {[%clk 00:02:16]} 22. Nxc6 {[%clk 00:01:40]} {[%emt
00:00:03]} bxc6 {[%clk 00:02:16]} 23. Bxf8 {[%clk 00:01:40]} {[%emt 00:00:03]}
Qxf8 {[%clk 00:02:16]} {[%emt 00:00:01]} 24. Bc4 {[%clk 00:01:31]} {[%emt
00:00:13]} Re8 {[%clk 00:02:09]} {[%emt 00:00:10]} 25. Re1 {[%clk 00:01:17]}
{[%emt 00:00:17]} c5 {[%clk 00:01:47]} {[%emt 00:00:25]} 26. Bxe6 {[%clk
00:01:16]} {[%emt 00:00:04]} Rxe6 {[%clk 00:01:47]} {[%emt 00:00:01]} 27. Qc3
{[%clk 00:01:14]} {[%emt 00:00:04]} Qe7 {[%clk 00:01:28]} {[%emt 00:00:22]} 28.
f4 {[%clk 00:01:04]} {[%emt 00:00:13]} Qc7 {[%clk 00:01:11]} {[%emt 00:00:20]}
29. Rad1 {[%clk 00:00:59]} {[%emt 00:00:09]} h5 {[%clk 00:01:11]} {[%emt
00:00:03]} 30. Qd3 {[%clk 00:00:59]} {[%emt 00:00:03]} Qc6 {[%clk 00:01:03]}
{[%emt 00:00:12]} 31. Qd5 {[%clk 00:00:56]} {[%emt 00:00:05]} Qa4 {[%clk
00:00:56]} {[%emt 00:00:11]} 32. Re4 {[%clk 00:00:28]} {[%emt 00:00:31]} Qc2
{[%clk 00:00:51]} {[%emt 00:00:08]} 33. Rd2 {[%clk 00:00:27]} {[%emt 00:00:05]}
Qc1+ {[%clk 00:00:45]} {[%emt 00:00:09]} 34. Kh2 {[%clk 00:00:27]} Kh7 {[%clk
00:00:32]} {[%emt 00:00:16]} 35. Rc4 {[%clk 00:00:23]} {[%emt 00:00:06]} Qf1
{[%clk 00:00:31]} {[%emt 00:00:05]} 36. Re4 {[%clk 00:00:15]} {[%emt 00:00:11]}
Bh6 {[%clk 00:00:28]} {[%emt 00:00:06]} 37. Qc4 {[%clk 00:00:15]} Qb1 {[%clk
00:00:19]} {[%emt 00:00:12]} 38. Rf2 {[%clk 00:00:15]} {[%emt 00:00:02]} Qd1
{[%clk 00:00:07]} {[%emt 00:00:15]} 39. f5 gxf5 {[%clk 00:00:07]} 40. Rxf5
{[%clk 00:00:13]} Qd7 {[%clk 00:00:05]} {[%emt 00:00:05]} 41. Qf1 {[%clk
00:00:13]} {[%emt 00:00:01]} Qe7 {[%clk 00:00:04]} {[%emt 00:00:05]} 42. Rxf7+
{[%clk 00:00:13]} {[%emt 00:00:01]} 1-0

[Event "14e Open International de Quenza"]
[Site "Quenza, France"]
[Date "????.??.??"]
[Round "4.12"]
[White "De Ieso, Lorenzo"]
[Black "Mougenot, Sacha"]
[Result "1-0"]
[TimeControl "5min+3s"]
[WhiteElo "2080"]
[BlackElo "1854"]

1. e4 {[%clk 00:05:03]} e5 {[%clk 00:05:03]} {[%emt 00:00:02]} 2. Bc4 {[%clk
00:05:03]} {[%emt 00:00:02]} Nf6 {[%clk 00:05:01]} {[%emt 00:00:05]} 3. d4
{[%clk 00:05:03]} {[%emt 00:00:02]} exd4 {[%clk 00:04:27]} {[%emt 00:00:37]} 4.
Nf3 {[%clk 00:05:03]} {[%emt 00:00:02]} Nc6 {[%clk 00:04:27]} {[%emt 00:00:02]}
5. O-O {[%clk 00:05:03]} {[%emt 00:00:03]} Bc5 {[%clk 00:04:27]} {[%emt
00:00:01]} 6. e5 {[%clk 00:05:03]} {[%emt 00:00:01]} d5 {[%clk 00:04:24]}
{[%emt 00:00:06]} 7. exf6 {[%clk 00:05:03]} {[%emt 00:00:02]} dxc4 {[%clk
00:04:24]} {[%emt 00:00:02]} 8. fxg7 {[%clk 00:05:03]} {[%emt 00:00:02]} Rg8
{[%clk 00:04:24]} {[%emt 00:00:01]} 9. Re1+ {[%clk 00:05:03]} {[%emt 00:00:01]}
Be6 {[%clk 00:04:24]} {[%emt 00:00:01]} 10. Bg5 {[%clk 00:05:03]} {[%emt
00:00:01]} Be7 {[%clk 00:04:24]} {[%emt 00:00:01]} 11. Bxe7 {[%clk 00:05:03]}
{[%emt 00:00:02]} Kxe7 {[%clk 00:03:58]} {[%emt 00:00:29]} 12. Re4 {[%clk
00:05:03]} {[%emt 00:00:03]} Kf6 {[%clk 00:03:10]} {[%emt 00:00:51]} 13. Nxd4
{[%clk 00:04:31]} {[%emt 00:00:34]} Nxd4 {[%clk 00:03:04]} {[%emt 00:00:09]} 14.
Rxd4 {[%clk 00:04:31]} {[%emt 00:00:03]} Qe7 {[%clk 00:03:03]} {[%emt
00:00:04]} 15. Qh5 {[%clk 00:03:06]} {[%emt 00:01:28]} Kxg7 {[%clk 00:02:29]}
{[%emt 00:00:37]} 16. Nc3 {[%clk 00:02:45]} {[%emt 00:00:25]} Qf6 {[%clk
00:02:05]} {[%emt 00:00:26]} 17. Rad1 {[%clk 00:02:25]} {[%emt 00:00:23]} Kh8
{[%clk 00:01:55]} {[%emt 00:00:14]} 18. Ne4 {[%clk 00:01:52]} {[%emt 00:00:35]}
Qg7 {[%clk 00:01:52]} {[%emt 00:00:05]} 19. Ng3 {[%clk 00:01:14]} {[%emt
00:00:42]} Bg4 {[%clk 00:01:49]} {[%emt 00:00:06]} 20. Rxg4 {[%clk 00:01:14]}
{[%emt 00:00:02]} Qxg4 {[%clk 00:01:49]} {[%emt 00:00:01]} 21. Qe5+ {[%clk
00:01:14]} Rg7 {[%clk 00:01:14]} {[%emt 00:00:38]} 22. Rd4 {[%clk 00:01:11]}
{[%emt 00:00:05]} Qg6 {[%clk 00:01:06]} {[%emt 00:00:11]} 23. h3 {[%clk
00:00:41]} {[%emt 00:00:33]} f6 {[%clk 00:01:06]} 24. Qe2 {[%clk 00:00:41]} Re8
{[%clk 00:01:06]} {[%emt 00:00:02]} 25. Qxc4 {[%clk 00:00:41]} {[%emt
00:00:02]} Rge7 {[%clk 00:00:55]} {[%emt 00:00:14]} 26. Rg4 {[%clk 00:00:41]}
{[%emt 00:00:02]} Re1+ {[%clk 00:00:37]} {[%emt 00:00:21]} 27. Kh2 {[%clk
00:00:41]} Qh6 {[%clk 00:00:36]} {[%emt 00:00:04]} 28. Qxc7 {[%clk 00:00:35]}
{[%emt 00:00:10]} R1e7 {[%clk 00:00:33]} {[%emt 00:00:06]} 29. Qc3 {[%clk
00:00:35]} {[%emt 00:00:01]} Qf8 {[%clk 00:00:30]} {[%emt 00:00:06]} 30. Rf4
{[%emt 00:00:01]} Rf7 31. Ne4 {[%clk 00:00:35]} {[%emt 00:00:02]} Re6 {[%clk
00:00:29]} {[%emt 00:00:04]} 32. Ng5 {[%clk 00:00:35]} {[%emt 00:00:01]} Rfe7
{[%clk 00:00:24]} {[%emt 00:00:08]} 33. Nxe6 {[%clk 00:00:35]} {[%emt
00:00:01]} Rxe6 {[%clk 00:00:24]} 34. Qf3 {[%clk 00:00:35]} Qd6 {[%clk
00:00:23]} {[%emt 00:00:05]} 35. g3 {[%emt 00:00:03]} Kg7 36. Rg4+ {[%clk
00:00:35]} Kf7 {[%clk 00:00:23]} {[%emt 00:00:04]} 37. Qxb7+ {[%clk 00:00:35]}
{[%emt 00:00:02]} Re7 {[%clk 00:00:23]} 38. Qb3+ {[%clk 00:00:35]} Re6 {[%clk
00:00:22]} {[%emt 00:00:05]} 39. Re4 {[%clk 00:00:35]} f5 {[%clk 00:00:16]}
{[%emt 00:00:09]} 40. Qxe6+ {[%clk 00:00:35]} {[%emt 00:00:01]} Qxe6 {[%clk
00:00:16]} 41. Rxe6 {[%clk 00:00:35]} {[%emt 00:00:02]} Kxe6 {[%clk 00:00:16]}
{[%emt 00:00:01]} 42. Kg2 {[%clk 00:00:35]} Kd5 {[%emt 00:00:05]} 1-0

[Event "14e Open International de Quenza"]
[Site "Quenza, France"]
[Date "????.??.??"]
[Round "5.1"]
[White "Dardha, Daniel"]
[Black "Maurizzi, Marc Andria"]
[Result "1/2-1/2"]
[TimeControl "5min+3s"]
[WhiteElo "2627"]
[BlackElo "2604"]

1. d4 {[%clk 00:05:03]} {[%emt 00:00:02]} d5 {[%clk 00:05:03]} {[%emt
00:00:02]} 2. c4 {[%clk 00:05:03]} {[%emt 00:00:03]} e6 {[%clk 00:05:03]}
{[%emt 00:00:03]} 3. Nf3 {[%clk 00:05:03]} {[%emt 00:00:02]} Nf6 {[%clk
00:05:03]} {[%emt 00:00:03]} 4. Nc3 {[%clk 00:05:03]} {[%emt 00:00:02]} c5
{[%clk 00:04:52]} {[%emt 00:00:13]} 5. cxd5 {[%clk 00:05:01]} {[%emt 00:00:05]}
cxd4 {[%clk 00:04:50]} {[%emt 00:00:05]} 6. Qxd4 {[%clk 00:05:00]} {[%emt
00:00:04]} exd5 {[%clk 00:04:48]} {[%emt 00:00:05]} 7. e4 {[%clk 00:04:49]}
{[%emt 00:00:13]} dxe4 {[%clk 00:04:35]} {[%emt 00:00:16]} 8. Qxd8+ {[%clk
00:04:49]} {[%emt 00:00:02]} Kxd8 {[%clk 00:04:35]} 9. Ng5 {[%clk 00:04:49]}
Be6 {[%clk 00:04:35]} {[%emt 00:00:01]} 10. Nxe6+ {[%clk 00:04:35]} {[%emt
00:00:17]} fxe6 {[%clk 00:04:35]} {[%emt 00:00:02]} 11. Bg5 {[%clk 00:04:34]}
{[%emt 00:00:04]} Nc6 {[%clk 00:04:29]} {[%emt 00:00:09]} 12. O-O-O+ {[%clk
00:04:22]} {[%emt 00:00:15]} Ke8 {[%clk 00:04:29]} {[%emt 00:00:03]} 13. Kb1
{[%clk 00:03:47]} {[%emt 00:00:38]} Bb4 {[%clk 00:04:14]} {[%emt 00:00:17]} 14.
Bxf6 {[%clk 00:03:39]} {[%emt 00:00:12]} gxf6 {[%clk 00:04:14]} 15. Nxe4 {[%clk
00:03:39]} {[%emt 00:00:01]} f5 {[%clk 00:04:08]} {[%emt 00:00:10]} 16. Ng5
{[%clk 00:03:14]} {[%emt 00:00:27]} Ke7 {[%clk 00:03:59]} {[%emt 00:00:12]} 17.
f4 {[%clk 00:02:54]} {[%emt 00:00:23]} h6 {[%clk 00:03:14]} {[%emt 00:00:48]}
18. Nf3 {[%clk 00:02:54]} {[%emt 00:00:01]} Rad8 {[%clk 00:03:10]} {[%emt
00:00:07]} 19. Bc4 {[%clk 00:02:37]} {[%emt 00:00:20]} Rxd1+ {[%clk 00:03:08]}
{[%emt 00:00:06]} 20. Rxd1 {[%clk 00:02:37]} Rd8 {[%clk 00:03:08]} 21. Kc2
{[%clk 00:02:01]} {[%emt 00:00:40]} Rxd1 {[%clk 00:03:08]} {[%emt 00:00:02]} 22.
Kxd1 {[%clk 00:02:01]} Kf6 {[%clk 00:03:08]} {[%emt 00:00:01]} 23. Ke2 {[%clk
00:01:50]} {[%emt 00:00:13]} e5 {[%clk 00:03:08]} {[%emt 00:00:02]} 24. fxe5+
{[%clk 00:01:50]} {[%emt 00:00:01]} Nxe5 {[%clk 00:03:08]} {[%emt 00:00:01]} 25.
Nxe5 Kxe5 {[%clk 00:03:08]} 26. g3 {[%clk 00:01:50]} {[%emt 00:00:02]} f4
{[%clk 00:03:08]} 27. gxf4+ Kxf4 28. Bd5 {[%clk 00:01:50]} {[%emt 00:00:01]} b6
{[%clk 00:03:08]} {[%emt 00:00:02]} 29. Be6 {[%clk 00:01:50]} {[%emt 00:00:02]}
Bd6 {[%clk 00:03:08]} 30. h3 {[%clk 00:01:50]} {[%emt 00:00:01]} h5 {[%clk
00:03:08]} {[%emt 00:00:01]} 31. Bf7 {[%clk 00:01:50]} {[%emt 00:00:01]} h4
{[%clk 00:03:08]} 32. Be6 {[%clk 00:01:50]} Be5 {[%clk 00:03:08]} 33. b3 {[%emt
00:00:02]} Bd6 34. Bd5 Be5 35. Be6 {[%clk 00:01:50]} Bd6 {[%clk 00:03:08]}
{[%emt 00:00:01]} 36. Bd5 {[%clk 00:01:50]} {[%emt 00:00:01]} Be5 {[%clk
00:03:08]} 37. Be6 {[%emt 00:00:09]} 1/2-1/2

[Event "14e Open International de Quenza"]
[Site "Quenza, France"]
[Date "????.??.??"]
[Round "5.2"]
[White "Hou, Yifan"]
[Black "Bellahcene, Bilel"]
[Result "1-0"]
[TimeControl "5min+3s"]
[WhiteElo "2633"]
[BlackElo "2513"]

1. e4 {[%clk 00:05:03]} c5 {[%clk 00:05:03]} {[%emt 00:00:01]} 2. d4 {[%clk
00:05:03]} {[%emt 00:00:02]} cxd4 {[%clk 00:05:03]} {[%emt 00:00:02]} 3. Qxd4
{[%clk 00:05:03]} {[%emt 00:00:02]} Nc6 {[%clk 00:05:03]} 4. Qd3 {[%clk
00:05:01]} {[%emt 00:00:05]} d6 {[%clk 00:04:59]} {[%emt 00:00:08]} 5. Nc3
{[%clk 00:05:00]} {[%emt 00:00:05]} Nf6 {[%clk 00:04:59]} {[%emt 00:00:03]} 6.
Nf3 {[%clk 00:05:00]} {[%emt 00:00:01]} Bg4 {[%clk 00:04:54]} {[%emt 00:00:08]}
7. Be2 {[%clk 00:04:38]} {[%emt 00:00:25]} Bxf3 {[%clk 00:04:54]} {[%emt
00:00:01]} 8. Bxf3 {[%clk 00:04:38]} {[%emt 00:00:01]} g6 {[%clk 00:04:54]} 9.
Be2 {[%clk 00:04:15]} {[%emt 00:00:25]} Bg7 {[%clk 00:04:54]} {[%emt 00:00:02]}
10. Nd5 {[%clk 00:04:15]} {[%emt 00:00:01]} Nd7 {[%clk 00:04:51]} {[%emt
00:00:06]} 11. c3 {[%clk 00:04:15]} {[%emt 00:00:03]} O-O {[%clk 00:04:51]}
{[%emt 00:00:02]} 12. Bg5 {[%clk 00:04:15]} {[%emt 00:00:02]} Re8 {[%clk
00:04:36]} {[%emt 00:00:17]} 13. O-O {[%clk 00:04:15]} {[%emt 00:00:03]} h6
{[%clk 00:03:07]} {[%emt 00:01:33]} 14. Bh4 {[%clk 00:04:15]} g5 {[%clk
00:03:07]} 15. Bg3 {[%emt 00:00:14]} e6 16. Ne3 {[%clk 00:03:54]} {[%emt
00:00:13]} Nde5 {[%clk 00:03:07]} {[%emt 00:00:01]} 17. Qd2 {[%clk 00:03:51]}
{[%emt 00:00:06]} Qb6 {[%clk 00:02:26]} {[%emt 00:00:44]} 18. Kh1 {[%clk
00:03:28]} {[%emt 00:00:26]} Ne7 {[%clk 00:02:03]} {[%emt 00:00:26]} 19. f4
gxf4 {[%clk 00:02:03]} 20. Bxf4 {[%clk 00:02:54]} N7g6 {[%clk 00:02:03]} {[%emt
00:00:02]} 21. Bg3 {[%clk 00:02:54]} Qc6 {[%clk 00:01:53]} {[%emt 00:00:14]} 22.
Qc2 {[%clk 00:02:43]} {[%emt 00:00:14]} Rad8 {[%clk 00:01:36]} {[%emt
00:00:20]} 23. Bh5 {[%clk 00:02:32]} {[%emt 00:00:14]} Qc5 {[%clk 00:01:29]}
{[%emt 00:00:10]} 24. Rae1 {[%clk 00:02:13]} {[%emt 00:00:21]} Rd7 {[%clk
00:01:29]} {[%emt 00:00:04]} 25. Qd1 {[%clk 00:01:34]} {[%emt 00:00:42]} b5
{[%clk 00:01:22]} {[%emt 00:00:11]} 26. Nf5 {[%clk 00:01:27]} {[%emt 00:00:10]}
exf5 {[%clk 00:00:49]} {[%emt 00:00:35]} 27. exf5 {[%clk 00:01:27]} {[%emt
00:00:01]} Nf8 {[%clk 00:00:47]} {[%emt 00:00:05]} 28. f6 {[%emt 00:00:02]} Bh8
29. Qd2 {[%clk 00:01:00]} {[%emt 00:00:30]} Kh7 {[%clk 00:00:23]} {[%emt
00:00:27]} 30. Bg4 {[%clk 00:01:00]} {[%emt 00:00:02]} Rdd8 {[%clk 00:00:20]}
{[%emt 00:00:06]} 31. Bf5+ {[%clk 00:01:00]} Neg6 {[%clk 00:00:19]} {[%emt
00:00:04]} 32. Re7 {[%clk 00:00:50]} {[%emt 00:00:13]} Qc4 {[%emt 00:00:12]} 33.
Bd3 {[%clk 00:00:50]} Qxa2 {[%clk 00:00:11]} {[%emt 00:00:02]} 34. c4 {[%clk
00:00:49]} {[%emt 00:00:04]} bxc4 {[%clk 00:00:09]} {[%emt 00:00:05]} 35. Rxf7+
{[%clk 00:00:49]} {[%emt 00:00:01]} Kg8 {[%clk 00:00:09]} 36. Bxg6 {[%clk
00:00:33]} {[%emt 00:00:18]} Nxg6 {[%clk 00:00:09]} {[%emt 00:00:04]} 37. Qd5
{[%clk 00:00:33]} 1-0

[Event "14e Open International de Quenza"]
[Site "Quenza, France"]
[Date "????.??.??"]
[Round "5.3"]
[White "Sumets, Andrey"]
[Black "Fressinet, Laurent"]
[Result "1/2-1/2"]
[TimeControl "5min+3s"]
[WhiteElo "2497"]
[BlackElo "2605"]

1. d4 {[%clk 00:05:03]} {[%emt 00:00:01]} Nf6 {[%clk 00:05:03]} {[%emt
00:00:02]} 2. c4 {[%clk 00:05:03]} e6 {[%clk 00:05:03]} 3. Nf3 {[%clk
00:05:03]} {[%emt 00:00:01]} d5 {[%clk 00:05:03]} {[%emt 00:00:01]} 4. Nc3
{[%clk 00:05:03]} {[%emt 00:00:04]} Be7 {[%clk 00:05:03]} {[%emt 00:00:02]} 5.
cxd5 {[%clk 00:05:00]} {[%emt 00:00:06]} exd5 {[%clk 00:05:03]} {[%emt
00:00:02]} 6. Qc2 {[%clk 00:05:00]} {[%emt 00:00:01]} c6 {[%clk 00:04:43]}
{[%emt 00:00:23]} 7. h3 {[%clk 00:05:00]} {[%emt 00:00:02]} Na6 {[%clk
00:04:33]} {[%emt 00:00:13]} 8. a3 {[%clk 00:04:32]} {[%emt 00:00:32]} O-O
{[%clk 00:04:27]} {[%emt 00:00:09]} 9. Bf4 {[%clk 00:04:27]} {[%emt 00:00:07]}
g6 {[%clk 00:04:06]} {[%emt 00:00:24]} 10. e3 {[%clk 00:04:03]} {[%emt
00:00:26]} Bf5 {[%clk 00:04:06]} {[%emt 00:00:02]} 11. Bd3 {[%clk 00:04:03]}
{[%emt 00:00:03]} Bxd3 {[%clk 00:04:06]} {[%emt 00:00:03]} 12. Qxd3 {[%clk
00:04:03]} {[%emt 00:00:01]} Nc7 {[%clk 00:04:06]} {[%emt 00:00:02]} 13. O-O
{[%clk 00:03:48]} {[%emt 00:00:18]} Ne6 {[%clk 00:04:06]} {[%emt 00:00:02]} 14.
Bh2 {[%clk 00:03:40]} {[%emt 00:00:10]} a5 {[%clk 00:03:59]} {[%emt 00:00:11]}
15. Rfc1 {[%clk 00:03:36]} {[%emt 00:00:07]} Bd6 {[%clk 00:03:36]} {[%emt
00:00:26]} 16. Bxd6 {[%clk 00:03:29]} {[%emt 00:00:10]} Qxd6 {[%clk 00:03:36]}
{[%emt 00:00:01]} 17. Rab1 {[%clk 00:03:26]} {[%emt 00:00:07]} Nd7 {[%clk
00:03:03]} {[%emt 00:00:36]} 18. Na4 {[%clk 00:03:14]} {[%emt 00:00:14]} Rfe8
{[%clk 00:02:49]} {[%emt 00:00:17]} 19. Qc2 {[%clk 00:03:06]} {[%emt 00:00:11]}
Nc7 {[%clk 00:02:25]} {[%emt 00:00:27]} 20. Ne1 {[%clk 00:02:40]} {[%emt
00:00:29]} Qf6 {[%clk 00:02:08]} {[%emt 00:00:20]} 21. Nd3 {[%clk 00:02:34]}
{[%emt 00:00:09]} Nb5 {[%clk 00:02:08]} {[%emt 00:00:02]} 22. Nac5 {[%clk
00:02:07]} {[%emt 00:00:30]} Nxc5 {[%clk 00:02:08]} {[%emt 00:00:03]} 23. Nxc5
{[%clk 00:02:07]} {[%emt 00:00:01]} Nd6 {[%clk 00:02:07]} {[%emt 00:00:04]} 24.
a4 {[%clk 00:01:38]} {[%emt 00:00:33]} Qe7 {[%clk 00:01:58]} {[%emt 00:00:11]}
25. b4 {[%clk 00:01:31]} {[%emt 00:00:10]} Nc4 {[%clk 00:01:52]} {[%emt
00:00:09]} 26. Qc3 {[%clk 00:01:23]} {[%emt 00:00:11]} axb4 {[%clk 00:01:51]}
{[%emt 00:00:04]} 27. Qxb4 {[%clk 00:01:16]} {[%emt 00:00:10]} b6 {[%clk
00:01:39]} {[%emt 00:00:15]} 28. Nd3 {[%clk 00:01:16]} {[%emt 00:00:02]} Qa7
{[%clk 00:01:17]} {[%emt 00:00:26]} 29. Nb2 {[%clk 00:01:04]} {[%emt 00:00:15]}
c5 {[%clk 00:01:01]} {[%emt 00:00:20]} 30. dxc5 {[%clk 00:00:51]} {[%emt
00:00:16]} bxc5 {[%clk 00:01:01]} {[%emt 00:00:01]} 31. Qc3 {[%clk 00:00:51]}
Nxb2 {[%clk 00:00:52]} {[%emt 00:00:11]} 32. Rxb2 {[%clk 00:00:51]} {[%emt
00:00:02]} d4 {[%clk 00:00:38]} {[%emt 00:00:18]} 33. Qxc5 {[%clk 00:00:48]}
{[%emt 00:00:06]} Qxc5 {[%clk 00:00:32]} {[%emt 00:00:09]} 34. Rxc5 {[%clk
00:00:48]} {[%emt 00:00:01]} dxe3 {[%clk 00:00:32]} {[%emt 00:00:04]} 35. fxe3
{[%clk 00:00:48]} Rxa4 {[%clk 00:00:31]} {[%emt 00:00:04]} 36. Rc3 {[%clk
00:00:42]} {[%emt 00:00:08]} Re7 {[%clk 00:00:30]} {[%emt 00:00:05]} 37. Kf2
{[%clk 00:00:42]} {[%emt 00:00:02]} Kg7 {[%clk 00:00:30]} {[%emt 00:00:01]} 38.
Rbc2 {[%clk 00:00:42]} {[%emt 00:00:03]} Ra6 {[%clk 00:00:29]} {[%emt
00:00:03]} 39. Rc6 {[%clk 00:00:42]} {[%emt 00:00:03]} Raa7 {[%clk 00:00:28]}
{[%emt 00:00:04]} 40. h4 {[%clk 00:00:42]} {[%emt 00:00:02]} h5 {[%clk
00:00:28]} {[%emt 00:00:03]} 41. g3 {[%clk 00:00:42]} Re5 {[%clk 00:00:27]}
{[%emt 00:00:05]} 42. R6c5 {[%clk 00:00:42]} {[%emt 00:00:02]} Rxc5 {[%clk
00:00:24]} {[%emt 00:00:06]} 43. Rxc5 {[%clk 00:00:42]} {[%emt 00:00:01]} Ra6
{[%clk 00:00:24]} {[%emt 00:00:02]} 44. Rc4 {[%clk 00:00:42]} {[%emt 00:00:02]}
Ra7 {[%clk 00:00:24]} {[%emt 00:00:01]} 45. Rc5 Ra6 46. Rc4 {[%clk 00:00:42]}
Ra7 {[%clk 00:00:24]} 47. Rc5 {[%emt 00:00:02]} 1/2-1/2